bitfinex/quotes_ETHUSD_20250217
["timestamp","ask_amount","ask_price","bid_price","bid_amount"]
[1739818983443,0.742052,2695.2,2694.6,0.8138]
[1739818983645,0.7718,2695.5,2694.3,5.2702414]
[1739818983646,3.71082,2694.9,2694.3,5.2702414]
[1739818983839,0.7718,2695.5,2694.3,5.2702414]
[1739818983840,3.7104,2695.2,2694.5,3.71124]
[1739818984038,4.48178,2695.5,2694.5,5.33582357]
[1739818984278,3.71025,2695.3,2694.8,3.71084]
[1739818984476,3.71025,2695.3,2694.7,0.8214]
[1739818984676,3.71046,2695.1,2694.7,0.8214]
[1739818984844,3.71037,2695.2,2694.7,5.51914636]
[1739818985050,3.71048,2695.1,2694.8,0.73621455]
[1739818985271,0.1,2695.2,2694.8,0.73621455]
[1739818985477,3.71053,2695.1,2694.8,0.73621455]
[1739818985679,0.1,2695.2,2694.8,0.73621455]
[1739818985878,0.1,2695.2,2694.8,4.44692455]
[1739818986040,0.1,2695.2,2694.8,5.26272101]
[1739818986372,3.7106,2695.0,2694.8,0.73621455]
[1739818986582,0.1,2695.2,2694.8,0.73621455]
[1739818986951,3.71068,2695.0,2694.8,0.73621455]
[1739818987484,3.71071,2694.9,2694.8,0.73621455]
[1739818987786,4.6223,2695.2,2694.8,0.73621455]
[1739818987959,3.71059,2695.0,2694.8,0.73621455]
[1739818988166,3.71071,2694.9,2694.8,0.73621455]
[1739818988661,0.8119,2694.8,2693.8,0.8214]
[1739818988867,0.8119,2694.8,2694.3,0.75375763]
[1739818989199,3.7114,2694.4,2694.3,0.75375763]
[1739818989570,3.71103,2694.7,2694.3,0.75375763]
[1739818990069,4.52502,2695.1,2694.6,3.71106]
[1739818990269,1.680818,2695.1,2694.4,0.8076]
[1739818990470,3.71095,2694.8,2694.4,0.8076]
[1739818990785,7.42193,2694.8,2694.4,0.8076]
[1739818990965,3.71106,2694.7,2694.4,0.8076]
[1739818991171,0.1,2695.2,2694.4,0.8076]
[1739818991366,3.71081,2694.9,2694.4,0.8076]
[1739818991570,3.71081,2694.9,2694.3,0.75375763]
[1739818991571,3.71106,2694.7,2694.3,0.75375763]
[1739818991904,0.8145,2694.4,2693.9,0.0151181]
[1739818992107,3.71195,2694.0,2693.9,0.0151181]
[1739818992257,3.75325551,2694.0,2693.9,0.75696017]
[1739818992457,3.71195,2694.0,2693.9,0.0151181]
[1739818993285,4.454327,2694.0,2693.9,0.0151181]
[1739818993655,5.268827,2694.0,2693.9,8.1e-06]
[1739818993853,8.31013251,2694.0,2693.9,8.1e-06]
[1739818994050,8.268827,2694.0,2693.9,8.1e-06]
[1739818994494,5.268827,2694.0,2693.9,8.1e-06]
[1739818995164,3.71195,2694.0,2693.9,8.1e-06]
[1739818995876,3.75325551,2694.0,2693.9,8.1e-06]
[1739818996198,4.50875,2694.0,2693.9,8.1e-06]
[1739818996492,7.50875,2694.0,2693.9,8.1e-06]
[1739818998399,16.80475,2694.0,2693.9,8.1e-06]
[1739818998559,18.856407,2694.0,2693.9,8.1e-06]
[1739818999214,18.856407,2694.0,2693.2,1.35e-06]
[1739818999215,4.48661,2693.3,2693.2,1.35e-06]
[1739818999516,7.85391551,2693.3,2693.2,1.35e-06]
[1739818999792,3.7142,2692.4,2692.1,0.005]
[1739819000094,0.7737,2692.7,2692.1,0.8227]
[1739819000095,3.71374,2692.7,2692.1,0.8227]
[1739819000259,0.7737,2693.0,2692.1,1.35075728]
[1739819000460,0.7737,2693.0,2692.1,5.06531728]
[1739819000461,3.71346,2692.9,2692.1,5.06531728]
[1739819000655,0.81500551,2693.0,2692.1,0.005]
[1739819000656,0.7737,2693.0,2692.1,0.005]
[1739819000871,3.71368,2692.8,2692.1,0.005]
[1739819001070,4.48705,2693.0,2692.1,3.71947]
[1739819001262,9.1147,2693.3,2692.7,3.71364]
[1739819001596,3.71285,2693.4,2692.8,0.8177]
[1739819001597,3.71278,2693.4,2692.8,0.8177]
[1739819001763,3.71306,2693.2,2692.8,0.8177]
[1739819001977,3.71281,2693.4,2692.8,0.8177]
[1739819002177,3.71295,2693.3,2692.8,0.8177]
[1739819002381,3.71314,2693.2,2692.8,0.8177]
[1739819002702,3.71319,2693.1,2692.5,5.36711046]
[1739819002901,3.7136,2692.8,2692.5,0.8177]
[1739819003115,3.71338,2693.0,2692.7,0.75255182]
[1739819003320,3.71274,2693.5,2692.7,0.75255182]
[1739819003481,1.1027,2693.6,2692.7,0.75255182]
[1739819003482,3.71327,2693.1,2692.7,0.75255182]
[1739819003816,3.7136,2692.8,2692.2,5.36711046]
[1739819004034,0.04130551,2692.7,2692.2,0.8177]
[1739819004337,3.71415,2692.4,2692.3,0.73901644]
[1739819004638,3.71398,2692.6,2692.3,0.73901644]
[1739819004794,3.71367,2692.8,2692.3,5.2884269]
[1739819005183,3.71396,2692.6,2692.3,0.73901644]
[1739819005382,0.371367,2692.7,2692.3,0.73901644]
[1739819005748,3.71364,2692.8,2692.3,4.45317644]
[1739819006012,3.71364,2692.8,2692.3,0.73901644]
[1739819006215,3.7134,2693.0,2692.3,0.73901644]
[1739819006377,3.71365,2692.8,2692.3,0.73901644]
[1739819006784,3.71365,2692.8,2692.3,4.45329644]
[1739819007201,3.71365,2692.8,2692.3,0.73901644]
[1739819007417,3.75512551,2692.7,2692.3,0.73901644]
[1739819007915,3.71405,2692.5,2692.3,0.73901644]
[1739819008729,3.75545551,2692.4,2692.3,0.73901644]
[1739819009016,3.71443,2692.2,2692.1,0.005]
[1739819009217,0.04130551,2692.2,2692.1,0.005]
[1739819009417,0.777,2692.9,2692.1,0.005]
[1739819009918,0.04130551,2692.8,2692.1,4.48895]
[1739819010119,1.11293151,2693.1,2692.3,3.71429]
[1739819010318,0.777,2693.4,2692.3,8.26363046]
[1739819010500,0.81830551,2693.4,2692.4,3.71405]
[1739819010694,0.777,2693.4,2692.4,7.42813]
[1739819010919,0.777,2693.4,2692.4,3.71405]
[1739819011218,0.329,2693.8,2692.7,0.7751]
[1739819011396,0.37030551,2693.8,2692.7,4.48875]
[1739819011597,0.37030551,2693.8,2692.8,3.7135]
[1739819011991,0.329,2693.8,2692.8,3.7135]
[1739819012222,0.37030551,2693.8,2692.7,1.50521103]
[1739819012534,0.48821055,2693.7,2692.7,1.50521103]
[1739819012717,0.7997,2693.9,2692.8,3.7136]
[1739819013016,4.47697,2693.7,2692.7,0.73011103]
[1739819013262,0.7645,2693.2,2692.3,0.8154]
[1739819013418,0.7645,2693.2,2692.1,0.005]
[1739819013419,0.37130551,2693.1,2692.1,0.005]
[1739819013577,3.37130551,2693.1,2692.1,0.005]
[1739819013908,3.0,2692.9,2692.1,0.005]
[1739819014110,4.54802551,2692.8,2692.1,0.005]
[1739819014445,4.50675,2692.7,2692.1,0.005]
[1739819014599,0.793,2692.7,2692.1,0.005]
[1739819015492,8.21173255,2693.0,2692.1,0.005]
[1739819015493,1.54709255,2693.0,2692.1,3.71945]
[1739819015805,0.7622,2693.0,2692.1,0.005]
[1739819016000,0.04130551,2692.9,2692.1,0.005]
[1739819016208,3.75483551,2692.9,2692.1,0.005]
[1739819016590,3.71353,2692.9,2692.1,0.005]
[1739819016926,0.8259,2692.7,2692.1,0.005]
[1739819017139,4.12946055,2692.6,2692.1,0.005]
[1739819017640,3.71416,2692.4,2692.1,0.005]
[1739819017788,3.71404,2692.5,2692.1,0.005]
[1739819017994,3.0,2692.4,2692.1,0.005]
[1739819018210,7.53976,2692.7,2692.1,0.005]
[1739819018405,3.0,2692.5,2692.1,0.005]
[1739819018601,3.71413,2692.5,2692.1,0.005]
[1739819018823,1.125344,2692.6,2692.1,0.005]
[1739819019025,0.8259,2692.7,2692.1,0.005]
[1739819019231,0.04130551,2692.6,2692.1,0.005]
[1739819019428,0.8259,2692.7,2692.1,0.005]
[1739819021207,6.71392,2692.6,2692.1,0.005]
[1739819021406,3.0,2692.6,2692.1,0.005]
[1739819021613,0.38259,2692.5,2692.1,0.005]
[1739819021919,3.0,2692.9,2692.1,0.005]
[1739819022119,6.75478551,2692.9,2692.1,0.005]
[1739819022321,3.71361,2692.8,2692.1,0.005]
[1739819022507,3.0,2692.9,2692.1,0.005]
[1739819022928,0.7661,2693.0,2692.1,0.005]
[1739819023102,0.7661,2693.3,2692.4,0.7927]
[1739819024098,8.672,2693.5,2692.4,4.50677]
[1739819024340,8.672,2693.5,2692.4,0.7927]
[1739819024341,12.38464,2693.5,2692.4,0.7927]
[1739819024565,3.71305,2693.2,2692.4,0.7927]
[1739819024722,0.80740551,2693.1,2692.3,0.73203401]
[1739819025039,0.80740551,2693.1,2692.1,0.005]
[1739819025040,0.7661,2692.5,2692.1,0.005]
[1739819025209,6.71382,2692.7,2692.1,0.005]
[1739819025414,3.71409,2692.5,2692.1,0.005]
[1739819025605,3.71403,2692.5,2692.1,0.005]
[1739819025836,3.75533551,2692.5,2692.1,0.005]
[1739819026023,3.71403,2692.5,2692.1,0.005]
[1739819026226,3.71416,2692.4,2692.1,0.005]
[1739819026417,0.82105506,2692.3,2692.1,0.005]
[1739819026622,0.77974955,2692.3,2692.1,0.005]
[1739819027341,0.04130551,2692.2,2692.1,0.005]
[1739819027644,1.54584955,2692.3,2692.1,0.005]
[1739819027839,0.04130551,2692.2,2692.1,0.005]
[1739819028141,0.90157851,2692.2,2692.1,0.005]
[1739819028449,0.7661,2692.3,2692.1,0.005]
[1739819029146,0.328,2692.5,2692.1,0.005]
[1739819029645,4.75257751,2692.6,2692.1,0.005]
[1739819029858,4.42129407,2692.6,2692.1,0.005]
[1739819030138,4.74729407,2692.6,2692.1,0.005]
[1739819030347,0.55719941,2692.5,2692.1,0.005]
[1739819030516,0.86600551,2692.4,2692.1,0.005]
[1739819030721,3.75566551,2692.3,2692.1,0.005]
[1739819030916,0.8247,2692.4,2692.1,0.005]
[1739819030917,4.53888,2692.4,2692.1,0.005]
[1739819031318,0.8247,2692.4,2692.1,0.005]
[1739819031645,4.168188,2692.3,2692.1,0.005]
[1739819031843,3.71443,2692.2,2692.1,0.005]
[1739819032007,7.882568,2692.3,2692.1,0.005]
[1739819032207,7.882598,2692.3,2692.1,0.005]
[1739819032411,4.168188,2692.3,2692.1,0.005]
[1739819032635,0.4992888,2692.2,2692.1,0.005]
[1739819033042,0.453878,2692.3,2692.1,0.005]
[1739819033264,3.71443,2692.2,2692.1,0.005]
[1739819033455,0.453878,2692.3,2692.1,0.005]
[1739819033661,4.168238,2692.3,2692.1,0.005]
[1739819034009,3.71443,2692.2,2692.1,0.005]
[1739819034216,0.8707368,2692.2,2692.1,0.005]
[1739819034717,0.453878,2692.3,2692.1,0.005]
[1739819034918,0.324,2692.4,2692.1,0.005]
[1739819035119,7.5162,2692.8,2692.1,0.005]
[1739819035341,0.04130551,2692.7,2692.1,0.005]
[1739819035538,0.04130551,2692.6,2692.1,0.005]
[1739819035739,0.324,2692.7,2692.1,0.005]
[1739819035942,1.1911,2692.7,2692.1,0.005]
[1739819036853,0.8025,2693.1,2692.2,0.7877]
[1739819037159,0.324,2693.1,2692.2,4.50211]
[1739819037447,0.323,2693.3,2692.4,4.54941046]
[1739819037747,0.323,2693.3,2692.5,0.7877]
[1739819037930,0.403583,2693.2,2692.5,0.7877]
[1739819038541,0.323,2693.3,2692.5,0.7877]
[1739819038743,0.04130551,2693.2,2692.5,0.7877]
[1739819039091,0.04130551,2693.2,2692.5,4.50165]
[1739819039376,0.323,2693.3,2692.9,0.73570161]
[1739819040561,9.1495,2693.8,2693.0,0.7877]
[1739819040767,1.23695,2693.7,2693.0,0.7877]
[1739819040968,0.04130551,2693.6,2692.9,0.73570161]
[1739819041133,7.42546,2693.5,2692.9,0.73570161]
[1739819041328,3.71272,2693.5,2692.5,0.7877]
[1739819041673,6.71358,2692.9,2692.2,0.72982492]
[1739819041846,1.40700851,2692.8,2692.2,0.72982492]
[1739819042245,0.323,2692.8,2692.3,0.7602]
[1739819042768,0.04130551,2692.7,2692.3,0.7602]
[1739819042966,0.04130551,2692.7,2692.2,0.72982492]
[1739819043338,0.80150551,2692.7,2692.2,0.72982492]
[1739819043541,0.7602,2692.7,2692.2,0.72982492]
[1739819043851,1.611226,2692.7,2692.2,0.72982492]
[1739819044044,0.80150551,2693.0,2692.2,4.44411492]
[1739819044275,0.323,2693.1,2692.2,0.72982492]
[1739819044457,0.323,2693.1,2692.2,4.44421492]
[1739819044661,0.323,2693.1,2692.2,4.44414492]
[1739819045174,0.323,2693.1,2692.2,0.72982492]
[1739819045379,0.40774555,2693.0,2692.2,4.44424492]
[1739819045692,0.323,2693.1,2692.2,4.44424492]
[1739819045840,0.323,2693.1,2692.3,3.71419]
[1739819046041,0.323,2693.1,2692.2,0.72982492]
[1739819046279,0.323,2693.1,2692.2,4.44412492]
[1739819046450,0.323,2693.1,2692.2,8.15846492]
[1739819046647,0.323,2693.1,2692.2,1.62219141]
[1739819046834,0.323,2693.1,2692.2,0.72982492]
[1739819046835,3.71356,2692.9,2692.2,0.72982492]
[1739819047035,3.75500551,2692.8,2692.2,0.72982492]
[1739819047271,0.7948,2692.6,2692.2,0.72982492]
[1739819047676,3.71406,2692.5,2692.2,0.72982492]
[1739819048451,0.7948,2692.2,2692.1,0.005]
[1739819048685,10.10153551,2692.2,2692.1,0.005]
[1739819048877,10.06023,2692.2,2692.1,0.005]
[1739819049239,7.83123,2692.2,2692.1,0.005]
[1739819049787,17.13323,2692.2,2692.1,0.005]
[1739819049958,10.1839836,2692.2,2692.1,0.005]
[1739819050160,6.1475536,2692.2,2692.1,0.005]
[1739819050464,4.1168,2692.2,2692.1,0.005]
[1739819050671,7.87253551,2692.2,2692.1,0.005]
[1739819050871,7.83123,2692.2,2692.1,0.005]
[1739819051044,17.13323,2692.2,2692.1,0.005]
[1739819051248,4.1168,2692.2,2692.1,0.005]
[1739819051550,8.65565751,2692.2,2692.1,0.005]
[1739819051775,8.614352,2692.2,2692.1,0.005]
[1739819053784,0.783122,2692.2,2692.1,0.005]
[1739819053990,0.322,2692.2,2692.1,0.005]
[1739819054556,0.321,2692.2,2692.1,0.005]
[1739819055117,0.321,2692.3,2692.1,0.005]
[1739819055261,0.04130551,2692.2,2692.1,0.005]
[1739819055590,0.7555,2692.2,2692.1,0.005]
[1739819055802,0.779074,2692.2,2692.1,0.005]
[1739819055975,0.321,2692.3,2692.1,0.005]
[1739819056994,0.321,2692.4,2692.1,0.005]
[1739819057399,3.71395,2692.6,2692.1,0.005]
[1739819057608,0.321,2692.5,2692.1,0.005]
[1739819058099,0.04130551,2692.4,2692.1,0.005]
[1739819058602,0.321,2692.5,2692.1,0.005]
[1739819058964,0.04130551,2692.4,2692.1,0.005]
[1739819059271,0.44892706,2692.4,2692.1,0.005]
[1739819059477,0.321,2692.5,2692.1,0.005]
[1739819060198,3.7912,2692.8,2692.1,0.005]
[1739819060395,0.32,2692.7,2692.1,0.005]
[1739819060699,0.42,2693.3,2692.5,3.71402]
[1739819060862,0.1,2693.3,2692.9,3.71345]
[1739819061061,0.1,2693.3,2693.0,0.7558]
[1739819061264,0.1,2693.3,2693.0,5.30521046]
[1739819061463,0.1,2693.3,2693.1,3.7131]
[1739819061700,0.1,2693.3,2693.2,4.51725]
[1739819061997,0.1,2693.3,2693.2,5.68370748]
[1739819063274,0.1,2693.3,2693.2,5.72083103]
[1739819063475,8.27615821,2694.2,2693.2,5.72083103]
[1739819063476,8.27615821,2694.2,2693.9,0.8042]
[1739819063814,8.27615821,2694.2,2694.1,9.06542046]
[1739819063815,7.47411421,2694.2,2694.1,9.06542046]
[1739819064135,0.8044,2695.8,2694.8,3.71084]
[1739819064276,8.347,2696.2,2695.1,4.54941046]
[1739819064479,8.347,2696.2,2695.4,4.54941046]
[1739819064872,8.347,2696.2,2695.6,0.73692082]
[1739819065214,0.75150594,2697.2,2695.7,0.8042]
[1739819065413,0.04130551,2697.1,2696.1,4.54941046]
[1739819065609,0.37489855,2697.0,2696.1,8.25845046]
[1739819065841,4.51156,2697.5,2696.3,0.8042]
[1739819066020,0.8044,2697.5,2696.4,4.54941046]
[1739819066313,0.8044,2697.5,2696.6,0.73476281]
[1739819067077,0.04130551,2697.4,2696.3,0.8042]
[1739819067529,3.70727,2697.4,2696.3,0.8042]
[1739819067836,0.451167,2697.3,2696.5,4.54941046]
[1739819067981,4.51091,2698.0,2696.8,4.54941046]
[1739819068313,4.02869,2697.9,2696.8,4.54941046]
[1739819068498,4.06999551,2697.9,2696.8,4.54941046]
[1739819068899,0.36330551,2697.9,2696.8,4.54941046]
[1739819069099,0.322,2697.9,2696.8,4.54941046]
[1739819069300,4.23137351,2697.8,2696.8,5.28414799]
[1739819069503,0.483288,2697.8,2696.8,5.28414799]
[1739819069712,3.70697,2697.7,2696.8,5.28414799]
[1739819069921,0.04130551,2697.6,2696.8,5.28414799]
[1739819070845,0.322,2697.9,2696.8,5.28414799]
[1739819070846,4.06992551,2697.9,2696.8,5.28414799]
[1739819071030,3.70697,2697.7,2696.8,0.73473753]
[1739819071327,0.04130551,2697.6,2696.8,0.73473753]
[1739819071487,4.08196755,2697.5,2696.8,0.73473753]
[1739819071689,0.37482755,2697.5,2696.8,0.73473753]
[1739819073536,0.04130551,2697.4,2696.8,0.73473753]
[1739819073691,0.37482755,2697.5,2696.8,0.73473753]
[1739819073893,3.70695,2697.7,2696.8,0.73473753]
[1739819074090,3.70672,2697.8,2696.8,0.73473753]
[1739819074295,3.70777,2697.1,2696.6,0.8042]
[1739819074518,0.04130551,2697.0,2696.6,0.8042]
[1739819074704,3.0,2696.9,2695.7,0.8031]
[1739819074908,3.0,2696.9,2694.4,0.36846052]
[1739819074909,3.0,2696.5,2694.3,0.1]
[1739819075229,3.70971,2695.7,2694.7,0.8031]
[1739819075531,0.7813,2696.3,2694.7,0.8031]
[1739819075532,0.36130551,2695.6,2694.7,0.8031]
[1739819075833,0.32,2695.5,2694.7,0.8031]
[1739819076019,0.04130551,2695.4,2694.7,0.8031]
[1739819076220,0.32,2695.8,2694.7,5.04072229]
[1739819076516,0.7813,2696.3,2695.1,3.71043]
[1739819076833,4.49514105,2696.8,2695.4,3.70999]
[1739819076834,0.32,2696.2,2695.4,3.70999]
[1739819077156,8.656,2696.7,2695.6,0.8031]
[1739819077357,0.94429411,2696.6,2695.6,5.24713402]
[1739819077552,0.94429411,2696.6,2695.7,0.55]
[1739819077759,8.336,2696.7,2695.9,0.8031]
[1739819078061,0.32,2697.2,2696.6,3.70828]
[1739819078225,0.32,2697.7,2696.6,3.70828]
[1739819078422,0.7813,2697.8,2696.6,7.41655]
[1739819078621,0.32,2697.7,2696.6,3.70827]
[1739819079359,0.04130551,2698.0,2696.7,0.75606503]
[1739819079574,0.91596055,2697.9,2696.8,4.5111]
[1739819079861,0.91596055,2697.9,2697.2,3.70749]
[1739819080158,0.91596055,2697.9,2697.3,0.8031]
[1739819080457,8.337,2698.1,2697.3,0.8031]
[1739819080666,8.337,2698.1,2697.4,3.70713]
[1739819080960,0.319,2698.6,2697.7,0.8031]
[1739819081475,0.04130551,2698.8,2697.9,0.73163032]
[1739819081638,0.86030551,2699.3,2697.9,0.73163032]
[1739819081955,1.23853055,2699.2,2697.9,0.73163032]
[1739819082163,0.04130551,2699.1,2697.9,0.73163032]
[1739819082333,1.23853055,2699.2,2697.9,0.73163032]
[1739819082334,0.91953055,2699.2,2698.1,3.70628]
[1739819082537,0.91953055,2699.2,2698.2,0.7954]
[1739819082734,0.319,2699.1,2698.2,0.7954]
[1739819082938,0.20575306,2699.1,2698.3,3.74298901]
[1739819083134,0.91953055,2699.2,2698.3,3.74298901]
[1739819083401,8.335,2699.4,2698.5,3.70565]
[1739819083864,0.318,2699.6,2698.8,0.7514]
[1739819084159,0.319,2700.0,2698.8,0.7514]
[1739819084383,0.319,2700.0,2699.0,0.74277076]
[1739819084526,8.333,2700.7,2699.9,3.70378]
[1739819084733,1.38299531,2700.6,2700.0,0.7865]
[1739819085360,4.38299531,2700.6,2700.0,0.7865]
[1739819085561,2.18200082,2700.6,2699.2,0.7865]
[1739819085763,1.38299531,2700.6,2699.5,3.70437]
[1739819085966,0.97159953,2700.5,2699.6,4.49071]
[1739819086172,0.97159953,2700.5,2699.8,3.70397]
[1739819086468,0.04130551,2700.4,2699.6,0.7865]
[1739819086668,0.04130551,2700.6,2699.9,0.73378414]
[1739819086843,8.333,2700.7,2699.9,0.73378414]
[1739819087044,8.333,2700.7,2700.0,3.7036]
[1739819087246,8.333,2700.7,2699.9,4.43760414]
[1739819088036,8.333,2700.7,2699.9,0.73378414]
[1739819088037,0.04130551,2700.6,2699.9,0.73378414]
[1739819088443,9.1663,2700.7,2699.9,0.73378414]
[1739819089266,9.1663,2700.7,2699.6,0.7865]
[1739819089267,3.0,2700.6,2699.6,0.7865]
[1739819089467,3.7598,2700.6,2699.6,0.7865]
[1739819089671,0.318,2700.5,2699.6,0.7865]
[1739819089977,0.318,2700.5,2699.7,0.449077]
[1739819090143,0.04130551,2700.4,2699.6,1.51374439]
[1739819090644,3.0,2700.6,2699.6,1.51374439]
[1739819091158,3.04130551,2700.6,2699.6,1.51374439]
[1739819091788,3.04130551,2700.6,2699.6,0.7865]
[1739819092242,3.0,2700.6,2699.7,3.70398]
[1739819092442,9.4843,2700.7,2699.8,0.48608932]
[1739819092443,8.333,2700.7,2699.8,0.48608932]
[1739819092642,8.333,2700.7,2699.7,3.70402]
[1739819093185,8.333,2700.7,2699.9,3.70378]
[1739819093420,0.04130551,2700.6,2699.6,4.49064]
[1739819093546,8.333,2700.7,2699.6,0.8177]
[1739819093749,0.797,2701.4,2700.0,0.8177]
[1739819094043,0.318,2701.8,2700.3,0.8177]
[1739819094358,0.1447727,2701.9,2700.9,4.52008]
[1739819094359,0.4627727,2701.9,2700.9,4.52008]
[1739819094558,0.4627727,2701.9,2700.9,1.63998]
[1739819094955,0.4627727,2701.9,2701.0,3.70229]
[1739819095159,0.4627727,2701.9,2700.9,5.34242]
[1739819095482,0.4627727,2701.9,2700.9,1.63998]
[1739819095684,0.50407821,2701.9,2701.1,0.7377046]
[1739819096003,0.4627727,2701.9,2701.1,0.7377046]
[1739819096207,0.1447727,2701.9,2701.1,0.97547306]
[1739819096381,0.1447727,2701.9,2701.2,3.73898761]
[1739819096703,0.1447727,2701.9,2701.3,3.73889541]
[1739819096906,0.1447727,2701.9,2701.3,3.70188]
[1739819097103,0.1447727,2701.9,2701.6,0.8177]
[1739819097302,0.1447727,2701.9,2701.7,0.451928]
[1739819097483,0.1447727,2701.9,2701.6,0.8177]
[1739819098207,0.1447727,2701.9,2701.8,3.70123]
[1739819098502,0.1447727,2701.9,2701.8,5.80327973]
[1739819099505,0.322,2703.4,2702.3,0.3]
[1739819099506,0.005,2703.4,2702.3,0.3]
[1739819099723,0.797,2704.5,2702.7,0.55]
[1739819099910,3.0,2704.3,2702.6,0.8177]
[1739819100082,3.73926551,2704.2,2702.9,0.75096029]
[1739819100408,4.16172327,2704.4,2703.4,3.69904]
[1739819100409,0.78492327,2704.4,2703.4,3.69904]
[1739819100605,0.797,2704.5,2703.2,4.51698]
[1739819100606,0.797,2704.5,2703.5,0.03698317]
[1739819100806,0.4657727,2704.6,2703.2,0.8177]
[1739819101005,0.4657727,2704.6,2702.5,5.33288591]
[1739819101006,4.47711,2704.4,2702.8,0.8224]
[1739819101208,0.7794,2704.4,2702.8,4.52216]
[1739819101523,0.7794,2704.4,2703.1,3.69932]
[1739819101808,0.321,2704.3,2703.2,0.74969966]
[1739819102310,0.321,2704.3,2702.7,0.55]
[1739819102311,3.0,2704.0,2702.4,4.4605]
[1739819102513,3.0,2703.6,2702.4,0.7601]
[1739819102706,0.669871,2703.5,2702.4,0.7601]
[1739819103006,0.322,2703.4,2702.4,0.7601]
[1739819103173,0.322,2703.4,2702.5,0.7233749]
[1739819103371,0.669871,2703.5,2702.5,0.76037577]
[1739819103606,0.322,2703.4,2702.5,4.4235549]
[1739819103811,0.322,2703.4,2702.6,3.70003]
[1739819103999,0.322,2703.6,2702.6,3.70003]
[1739819104204,0.322,2703.6,2702.8,3.69986]
[1739819104416,0.322,2703.6,2702.6,3.70003]
[1739819104643,0.322,2703.6,2702.6,4.58841649]
[1739819104936,0.322,2703.6,2702.5,0.7233749]
[1739819105440,0.321,2703.5,2702.6,3.70005]
[1739819105799,0.321,2703.5,2702.5,0.7233749]
[1739819106045,0.321,2703.5,2702.8,3.69986]
[1739819106243,0.7996,2703.9,2702.9,0.03699384]
[1739819106411,0.1447727,2704.6,2703.3,3.69905]
[1739819106412,0.7952,2704.3,2703.3,3.69905]
[1739819106615,0.7952,2704.3,2703.4,3.69895]
[1739819106854,0.7952,2704.3,2703.2,7.39849]
[1739819107052,0.7952,2704.3,2703.4,3.69902]
[1739819107235,0.7952,2704.3,2703.7,0.73969759]
[1739819107537,0.7952,2704.3,2703.3,3.69916]
[1739819107724,0.7952,2704.3,2703.3,0.369916]
[1739819107908,0.7952,2704.3,2703.6,0.73584345]
[1739819108839,0.1447727,2704.6,2703.7,0.81628337]
[1739819109040,0.1447727,2704.6,2704.3,3.69773]
[1739819109243,0.1447727,2704.6,2704.5,3.69754]
[1739819109447,1.1446,2705.1,2704.6,3.69734]
[1739819109612,1.1446,2705.1,2704.4,3.69757]
[1739819109942,0.8226,2705.5,2704.4,8.544197]
[1739819110107,8.315,2705.9,2704.5,0.55]
[1739819110308,0.8226,2706.2,2705.1,0.7793]
[1739819111026,4.01781,2706.5,2705.1,1.50398705]
[1739819111027,0.323,2706.5,2705.1,1.50398705]
[1739819111231,0.323,2706.5,2705.6,3.69591]
[1739819111452,0.323,2706.5,2705.8,3.69576]
[1739819111655,0.8226,2706.6,2706.1,3.69526]
[1739819111954,0.8226,2707.0,2706.2,3.6951]
[1739819112121,0.04130551,2706.9,2705.8,0.7793]
[1739819112746,0.04130551,2706.9,2705.7,0.748389]
[1739819112965,0.04130551,2706.9,2705.4,0.7793]
[1739819113165,4.51713,2706.7,2705.4,0.7793]
[1739819113335,3.36430551,2706.6,2705.0,5.02611]
[1739819113547,0.8226,2706.3,2705.0,0.7793]
[1739819113769,3.0,2705.9,2704.6,0.57731806]
[1739819113970,0.8226,2705.7,2704.6,0.57731806]
[1739819114121,0.8226,2705.7,2704.6,1.11971857]
[1739819114122,1.1456,2705.7,2704.6,1.11971857]
[1739819114321,0.8226,2705.7,2704.8,3.69713]
[1739819114544,0.04130551,2705.6,2704.6,0.57731806]
[1739819114748,0.8226,2705.7,2704.6,0.57731806]
[1739819115063,0.812,2706.6,2705.1,1.3237]
[1739819115364,0.04130551,2706.5,2705.1,0.7737]
[1739819115531,3.04130551,2706.5,2705.1,0.7737]
[1739819115733,0.812,2706.2,2704.9,3.69696]
[1739819115933,0.812,2706.2,2704.9,0.7292793]
[1739819116233,3.73670551,2706.1,2704.7,0.7737]
[1739819116435,0.8302,2705.9,2704.6,0.57731806]
[1739819116650,0.324,2705.8,2704.6,0.57731806]
[1739819116881,0.324,2705.8,2704.6,1.11466787]
[1739819117327,0.324,2706.4,2705.6,3.69603]
[1739819117520,0.8302,2706.7,2705.7,0.03695732]
[1739819117767,0.8302,2706.7,2705.4,3.69626]
[1739819118057,0.8302,2706.7,2704.8,0.7814]
[1739819118058,3.6952,2706.3,2704.8,0.7814]
[1739819118363,3.8302,2706.2,2704.8,0.7814]
[1739819118610,3.0,2706.0,2704.8,1.52405745]
[1739819118731,3.0,2706.0,2704.5,3.69748]
[1739819118732,0.325,2705.9,2704.5,3.69748]
[1739819118929,0.8302,2705.8,2704.7,3.69724]
[1739819119123,0.8302,2705.8,2704.5,3.69748]
[1739819119426,0.8302,2705.8,2704.8,3.69711]
[1739819119633,0.8302,2705.8,2704.8,0.739448]
[1739819119965,0.04130551,2705.7,2704.4,1.151157]
[1739819120165,0.8302,2705.6,2704.4,1.151157]
[1739819120459,0.8302,2705.6,2704.4,4.44955601]
[1739819120660,0.8302,2705.6,2704.5,3.69744]
[1739819120860,0.8302,2705.6,2704.2,3.6979]
[1739819121062,3.8302,2705.6,2704.2,4.42637653]
[1739819121268,0.325,2705.9,2704.1,0.7814]